[Event "Silver Lake Open-A 2019"]
[Site "Veliko Gradiste"]
[Date "2019.06.22"]
[Round "8.7"]
[White "Lajthajm, Borko"]
[Black "Pesotskiy, Mikhail"]
[Result "1-0"]
[ECO "E10"]
[WhiteElo "2433"]
[BlackElo "2282"]
[Annotator "ChessBase"]
[PlyCount "105"]
[EventDate "2019.06.16"]
[EventType "swiss"]
[EventCountry "SRB"]
[SourceTitle "playchess.com"]
[Source "ChessBase"]
[SourceQuality "1"]
[TimeControl "40/5400+30:900+30"]

1. d4 Nf6 2. c4 e6 3. Nf3 a6 4. Qc2 d5 5. cxd5 exd5 6. Bg5 Be7 7. e3 Be6 8. Bd3 Nbd7 9. Nc3 O-O 10. h3 c5 11. O-O h6 12. Bf4 b5 13. a3 Qb6 14. Qe2 Rac8 15. Rad1 Rfe8 16. Bb1 b4 17. dxc5 Nxc5 18. axb4 Qxb4 19. Nd4 Red8 20. Be5 Qb6 21. Nf5 Bxf5 22. Bxf5 Ra8 23. Rd4 Qb7 24. Rfd1 Ncd7 25. Bg3 Nb6 26. Bh4 Qc6 27. Bb1 Qb7 28. Qc2 g6 29. Qe2 Kg7 30. Qf3 Ng8 31. Bg3 Bf6 32. Rb4 Qc6 33. Ba2 Ne7 34. Ne2 a5 35. Nd4 Qb7 36. Rb5 Qa6 37. Rc5 Rac8 38. Rxc8 Rxc8 39. Bd6 Qb7 40. Qg4 h5 41. Qg3 Qd7 42. Be5 Nc6 43. Bxf6+ Kxf6 44. Qf4+ Kg7 45. Nf3 Rd8 46. e4 Nb4 47. Bb1 Qa4 48. Re1 dxe4 49. Ng5 Qd7 50. Bxe4 f6 51. Bf5 gxf5 52. Ne6+ Kf7 53. Qh6 1-0

[Event "Silver Lake Open-A 2019"]
[Site "Veliko Gradiste"]
[Date "2019.06.22"]
[Round "8.8"]
[White "Pikula, Dejan"]
[Black "Dimitrov, Vladimir"]
[Result "1-0"]
[ECO "B51"]
[WhiteElo "2468"]
[BlackElo "2309"]
[Annotator "ChessBase"]
[PlyCount "37"]
[EventDate "2019.06.16"]
[EventType "swiss"]
[EventCountry "SRB"]
[SourceTitle "playchess.com"]
[Source "ChessBase"]
[SourceQuality "1"]
[TimeControl "40/5400+30:900+30"]

1. e4 {[%emt 0:00:00]} c5 {[%emt 0:00:00]} 2. Nf3 {[%emt 0:00:00]} d6 {[%emt 0:00:00]} 3. Bb5+ {[%emt 0:00:19]} Nd7 {[%emt 0:00:13]} 4. O-O {[%emt 0:00:36]} a6 {[%emt 0:00:11]} 5. Bd3 {[%emt 0:00:05]} g6 {[%emt 0:01:48]} 6. c3 {[%emt 0:00:51]} Ne5 {[%emt 0:00:41]} 7. Be2 {[%emt 0:01:12]} Nxf3+ {[%emt 0:10:47]} 8. Bxf3 {[%emt 0:00:15]} Bg7 {[%emt 0:00:21]} 9. d4 {[%emt 0:04:59]} Qb6 {[%emt 0:08:11]} 10. d5 {[%emt 0:07:31]} Nf6 {[%emt 0:00:42]} 11. Nd2 {[%emt 0:00:35]} Qc7 {[%emt 0:06:37]} 12. a4 {[%emt 0:01:05]} e5 {[%emt 0:02:34]} 13. b4 {[%emt 0:08:47]} Nd7 {[%emt 0:06:04]} 14. a5 {[%emt 0:07:37]} O-O {[%emt 0:00:59]} 15. Qb3 {[%emt 0:00:13]} cxb4 {[%emt 0:09:10]} 16. Qxb4 {[%emt 0:06:38]} Nc5 {[%emt 0:01:07]} 17. Ba3 {[%emt 0:00:27]} Bd7 {[%emt 0:02:38]} 18. Nc4 {[%emt 0:03:36]} Rac8 {[%emt 0:00:42]} 19. Qb6 {[%emt 0:07:05]} 1-0

[Event "Silver Lake Open-A 2019"]
[Site "Veliko Gradiste"]
[Date "2019.06.22"]
[Round "8.10"]
[White "Avalyan, Artur"]
[Black "Van Dael, Siem"]
[Result "0-1"]
[ECO "A01"]
[WhiteElo "2385"]
[BlackElo "2290"]
[Annotator "ChessBase"]
[PlyCount "132"]
[EventDate "2019.06.16"]
[EventType "swiss"]
[EventCountry "SRB"]
[SourceTitle "playchess.com"]
[Source "ChessBase"]
[SourceQuality "1"]
[TimeControl "40/5400+30:900+30"]

1. b3 Nf6 {[%emt 0:00:10]} 2. Bb2 {[%emt 0:00:00]} g6 {[%emt 0:00:10]} 3. g3 {[%emt 0:02:23]} Bg7 {[%emt 0:00:07]} 4. Bg2 {[%emt 0:00:03]} d6 {[%emt 0:01:14]} 5. e3 {[%emt 0:00:08]} O-O {[%emt 0:00:07]} 6. Ne2 {[%emt 0:00:02]} e5 {[%emt 0:00:32]} 7. O-O {[%emt 0:00:21]} Nbd7 {[%emt 0:00:31]} 8. d3 {[%emt 0:00:16]} c6 {[%emt 0:00:17]} 9. Nd2 {[%emt 0:00:03]} Re8 {[%emt 0:00:42]} 10. c4 {[%emt 0:04:17]} h5 {[%emt 0:02:46]} 11. h3 {[%emt 0:05:20]} Nf8 {[%emt 0:01:26]} 12. Rc1 {[%emt 0:06:18]} Bd7 {[%emt 0:05:00]} 13. Ba3 {[%emt 0:13:47]} Be6 {[%emt 0:06:27]} 14. Ne4 {[%emt 0:10:11]} d5 {[%emt 0:04:37]} 15. Nxf6+ {[%emt 0:09:13]} Bxf6 {[%emt 0:02:27]} 16. cxd5 {[%emt 0:02:43]} Bxd5 {[%emt 0:01:59]} 17. e4 {[%emt 0:01:26]} Be6 {[%emt 0:00:09]} 18. Qc2 {[%emt 0:00:41]} Qd7 {[%emt 0:01:41]} 19. Kh2 {[%emt 0:00:36]} h4 {[%emt 0:00:44]} 20. Rcd1 {[%emt 0:01:50]} Rad8 {[%emt 0:01:05]} 21. gxh4 {[%emt 0:04:46]} Bxh4 {[%emt 0:06:48]} 22. f4 {[%emt 0:00:19]} exf4 {[%emt 0:00:56]} 23. Nxf4 {[%emt 0:00:13]} Qc7 {[%emt 0:02:15]} 24. Kh1 {[%emt 0:00:39]} Bg5 {[%emt 0:05:14]} 25. Bc1 {[%emt 0:01:19]} Qe7 {[%emt 0:16:19]} 26. d4 {[%emt 0:01:06]} Bc8 {[%emt 0:00:17]} 27. d5 {[%emt 0:01:21]} Bf6 {[%emt 0:02:31]} 28. Qf2 {[%emt 0:10:33]} Be5 {[%emt 0:06:09]} 29. Nd3 {[%emt 0:00:21]} Bg7 {[%emt 0:01:23]} 30. Bf4 {[%emt 0:02:16]} cxd5 {[%emt 0:03:53]} 31. exd5 {[%emt 0:00:04]} b6 {[%emt 0:00:06]} 32. Qg3 {[%emt 0:05:14]} Bb7 {[%emt 0:01:23]} 33. Bg5 {[%emt 0:04:03]} Qd6 {[%emt 0:00:15]} 34. Qh4 {[%emt 0:03:00]} Rd7 {[%emt 0:00:37]} 35. Nb4 {[%emt 0:01:39]} a5 {[%emt 0:02:40]} 36. Nc6 {[%emt 0:03:17]} Bxc6 {[%emt 0:00:05]} 37. Bf4 {[%emt 0:00:14]} Qxd5 {[%emt 0:11:51]} 38. Rxd5 {[%emt 0:06:47]} Bxd5 {[%emt 0:00:08]} 39. Bxd5 {[%emt 0:01:32]} Rxd5 {[%emt 0:00:06]} 40. Qf2 {[%emt 0:00:00]} Rf5 {[%emt 0:00:00]} 41. Qg2 {[%emt 0:02:10]} Bd4 {[%emt 0:04:37]} 42. Bg5 {[%emt 0:02:01]} Rxf1+ {[%emt 0:02:09]} 43. Qxf1 {[%emt 0:00:03]} Bc3 {[%emt 0:02:03]} 44. Qc4 {[%emt 0:00:44]} Re1+ {[%emt 0:00:56]} 45. Kg2 {[%emt 0:00:07]} Be5 {[%emt 0:00:52]} 46. Kf2 {[%emt 0:03:13]} Ra1 {[%emt 0:02:49]} 47. Qe2 {[%emt 0:00:04]} Bg7 {[%emt 0:01:53]} 48. Be3 {[%emt 0:01:23]} Nd7 {[%emt 0:01:49]} 49. Qd2 {[%emt 0:01:02]} Nf6 {[%emt 0:00:04]} 50. Kf3 {[%emt 0:00:51]} Rf1+ {[%emt 0:04:35]} 51. Kg2 {[%emt 0:00:18]} Rf5 {[%emt 0:00:09]} 52. Bxb6 {[%emt 0:01:03]} Nd5 {[%emt 0:00:15]} 53. Bxa5 {[%emt 0:01:19]} Nf4+ {[%emt 0:01:00]} 54. Kh2 {[%emt 0:02:05]} Be5 {[%emt 0:00:11]} 55. Bc3 {[%emt 0:01:38]} Ne2+ {[%emt 0:00:11]} 56. Kg2 {[%emt 0:01:06]} Nxc3 {[%emt 0:00:11]} 57. a4 {[%emt 0:00:55]} Ne4 {[%emt 0:00:43]} 58. Qd8+ {[%emt 0:00:06]} Kg7 {[%emt 0:00:06]} 59. Qd5 {[%emt 0:01:57]} Rf2+ {[%emt 0:02:03]} 60. Kh1 {[%emt 0:00:01]} Ng3+ {[%emt 0:00:05]} 61. Kg1 {[%emt 0:00:02]} Re2 {[%emt 0:00:18]} 62. a5 {[%emt 0:00:55]} Nf5 {[%emt 0:00:22]} 63. Qf3 {[%emt 0:02:04]} Ra2 {[%emt 0:01:00]} 64. Qa8 {[%emt 0:01:43]} Bh2+ {[%emt 0:00:30]} 65. Kf1 {[%emt 0:00:04]} Ne3+ {[%emt 0:00:06]} 66. Ke1 {[%emt 0:00:03]} Bg3# {[%emt 0:00:04]} 0-1

[Event "Silver Lake Open-A 2019"]
[Site "Veliko Gradiste"]
[Date "2019.06.23"]
[Round "9.1"]
[White "Savic, Miodrag R"]
[Black "Radovanovic, Mihajlo"]
[Result "0-1"]
[ECO "B06"]
[WhiteElo "2503"]
[BlackElo "2483"]
[Annotator "ChessBase"]
[PlyCount "84"]
[EventDate "2019.06.16"]
[EventType "swiss"]
[EventCountry "SRB"]
[SourceTitle "playchess.com"]
[Source "ChessBase"]
[SourceQuality "1"]
[TimeControl "40/5400+30:900+30"]

1. e4 {[%emt 0:00:00]} d6 {[%emt 0:00:08]} 2. d4 {[%emt 0:00:00]} g6 {[%emt 0:00:05]} 3. Nc3 {[%emt 0:00:00]} Bg7 {[%emt 0:00:06]} 4. Be3 {[%emt 0:00:25]} a6 {[%emt 0:00:06]} 5. Qd2 {[%emt 0:04:59]} Nd7 {[%emt 0:00:18]} 6. a4 {[%emt 0:03:01]} b6 {[%emt 0:02:41]} 7. Bc4 {[%emt 0:09:06]} Bb7 {[%emt 0:00:57]} 8. f3 {[%emt 0:00:03]} e6 {[%emt 0:06:27]} 9. Nge2 {[%emt 0:01:28]} Qh4+ {[%emt 0:01:37]} 10. Bf2 {[%emt 0:03:01]} Qe7 {[%emt 0:00:37]} 11. O-O {[%emt 0:02:10]} Ngf6 {[%emt 0:01:19]} 12. Rae1 {[%emt 0:03:16]} O-O {[%emt 0:00:23]} 13. Bh4 {[%emt 0:00:48]} Nxe4 {[%emt 0:04:19]} 14. Qf4 {[%emt 0:14:29]} Nef6 {[%emt 0:04:33]} 15. Bg5 {[%emt 0:02:51]} Rfe8 {[%emt 0:03:10]} 16. Ne4 {[%emt 0:11:18]} e5 {[%emt 0:04:02]} 17. Qh4 {[%emt 0:14:48]} d5 {[%emt 0:03:11]} 18. Nxf6+ {[%emt 0:02:45]} Bxf6 {[%emt 0:04:29]} 19. Bxf6 {[%emt 0:00:01]} Qxf6 {[%emt 0:00:10]} 20. Qxf6 {[%emt 0:03:11]} Nxf6 {[%emt 0:00:06]} 21. Ba2 {[%emt 0:02:32]} exd4 {[%emt 0:06:03]} 22. a5 {[%emt 0:00:31]} c5 {[%emt 0:02:12]} 23. b4 {[%emt 0:02:51]} cxb4 {[%emt 0:02:51]} 24. axb6 {[%emt 0:01:11]} d3 {[%emt 0:01:45]} 25. Nd4 {[%emt 0:04:38]} Nd7 {[%emt 0:03:54]} 26. cxd3 {[%emt 0:00:43]} Nxb6 {[%emt 0:00:16]} 27. Nb3 {[%emt 0:03:32]} Rxe1 {[%emt 0:03:35]} 28. Rxe1 {[%emt 0:00:01]} a5 {[%emt 0:00:09]} 29. Nc5 {[%emt 0:00:26]} Bc6 {[%emt 0:00:28]} 30. Rb1 {[%emt 0:02:05]} Bb5 {[%emt 0:01:33]} 31. Rb2 {[%emt 0:01:13]} Rc8 {[%emt 0:01:23]} 32. Nb3 {[%emt 0:01:46]} Na4 {[%emt 0:00:56]} 33. Rd2 {[%emt 0:00:02]} Nc3 {[%emt 0:00:21]} 34. Nd4 {[%emt 0:00:09]} Bd7 {[%emt 0:00:23]} 35. Kf2 {[%emt 0:03:27]} a4 {[%emt 0:00:28]} 36. Ke3 {[%emt 0:00:28]} Re8+ {[%emt 0:02:51]} 37. Kf4 {[%emt 0:00:30]} f6 {[%emt 0:01:50]} 38. h4 {[%emt 0:00:00]} b3 {[%emt 0:01:15]} 39. Bxb3 {[%emt 0:00:33]} axb3 {[%emt 0:00:06]} 40. g4 {[%emt 0:00:00]} Rb8 {[%emt 0:00:00]} 41. Rb2 {[%emt 0:01:35]} Ba4 {[%emt 0:00:24]} 42. g5 {[%emt 0:01:16]} Rb4 {[%emt 0:01:21]} 0-1

[Event "Silver Lake Open-A 2019"]
[Site "Veliko Gradiste"]
[Date "2019.06.23"]
[Round "9.2"]
[White "Ernst, Sipke"]
[Black "Abramovic, Bosko"]
[Result "1-0"]
[ECO "A13"]
[WhiteElo "2541"]
[BlackElo "2353"]
[Annotator "ChessBase"]
[PlyCount "93"]
[EventDate "2019.06.16"]
[EventType "swiss"]
[EventCountry "SRB"]
[SourceTitle "playchess.com"]
[Source "ChessBase"]
[SourceQuality "1"]
[TimeControl "40/5400+30:900+30"]

1. Nf3 {[%emt 0:00:00]} Nf6 {[%emt 0:00:00]} 2. c4 {[%emt 0:00:04]} e6 {[%emt 0:00:00]} 3. g3 {[%emt 0:00:56]} d5 {[%emt 0:00:18]} 4. Bg2 {[%emt 0:01:00]} dxc4 {[%emt 0:00:07]} 5. Qa4+ {[%emt 0:00:08]} Nbd7 {[%emt 0:00:08]} 6. Qxc4 {[%emt 0:03:01]} a6 {[%emt 0:00:06]} 7. Qc2 {[%emt 0:00:04]} c5 {[%emt 0:00:36]} 8. Nc3 {[%emt 0:04:57]} Ra7 {[%emt 0:05:22]} 9. O-O {[%emt 0:11:50]} b6 {[%emt 0:01:40]} 10. d3 {[%emt 0:02:56]} Bb7 {[%emt 0:00:20]} 11. e4 {[%emt 0:00:04]} Be7 {[%emt 0:00:32]} 12. Bf4 {[%emt 0:01:00]} h6 {[%emt 0:01:18]} 13. Rfd1 {[%emt 0:04:01]} Qa8 {[%emt 0:00:39]} 14. a4 {[%emt 0:00:56]} O-O {[%emt 0:01:03]} 15. h3 {[%emt 0:00:21]} Re8 {[%emt 0:01:57]} 16. Nd2 {[%emt 0:02:18]} e5 {[%emt 0:06:01]} 17. Be3 {[%emt 0:00:05]} Qb8 {[%emt 0:00:22]} 18. Nc4 {[%emt 0:04:17]} Ba8 {[%emt 0:02:07]} 19. f4 {[%emt 0:03:49]} Bf8 {[%emt 0:03:56]} 20. Qf2 {[%emt 0:02:16]} Qd8 {[%emt 0:04:27]} 21. Rac1 {[%emt 0:07:26]} exf4 {[%emt 0:06:45]} 22. gxf4 {[%emt 0:00:34]} Rc7 {[%emt 0:00:05]} 23. e5 {[%emt 0:06:36]} Bxg2 {[%emt 0:05:33]} 24. Qxg2 {[%emt 0:03:47]} Nh7 {[%emt 0:00:00]} 25. Ne4 {[%emt 0:00:30]} Qa8 {[%emt 0:00:29]} 26. Ncd6 {[%emt 0:03:16]} Bxd6 {[%emt 0:01:17]} 27. Nxd6 {[%emt 0:00:00]} Qxg2+ {[%emt 0:00:54]} 28. Kxg2 Rb8 {[%emt 0:00:00]} 29. b4 {[%emt 0:03:09]} Nhf8 {[%emt 0:00:42]} 30. d4 {[%emt 0:09:27]} f6 31. a5 {[%emt 0:00:07]} bxa5 {[%emt 0:08:47]} 32. bxc5 Rb3 33. Kf2 {[%emt 0:03:10]} fxe5 {[%emt 0:03:46]} 34. fxe5 {[%emt 0:00:06]} Ng6 {[%emt 0:00:54]} 35. Rb1 {[%emt 0:09:49]} Rb4 {[%emt 0:01:17]} 36. Rxb4 {[%emt 0:00:30]} axb4 {[%emt 0:00:30]} 37. Ra1 {[%emt 0:00:00]} Ngxe5 {[%emt 0:00:44]} 38. dxe5 {[%emt 0:01:29]} Nxe5 {[%emt 0:00:34]} 39. Ke2 Rc6 40. Ra4 {[%emt 0:00:00]} Nd7 {[%emt 0:00:00]} 41. Nb7 {[%emt 0:06:26]} Rc7 {[%emt 0:08:14]} 42. Rxb4 a5 43. Rb5 {[%emt 0:02:26]} a4 {[%emt 0:00:35]} 44. Kd2 {[%emt 0:03:47]} Ne5 {[%emt 0:01:21]} 45. Bf4 {[%emt 0:01:20]} Rd7+ 46. Kc3 {[%emt 0:03:53]} Nc6 {[%emt 0:01:30]} 47. Na5 {[%emt 0:00:30]} 1-0

[Event "Silver Lake Open-A 2019"]
[Site "Veliko Gradiste"]
[Date "2019.06.23"]
[Round "9.4"]
[White "Yu, Jennifer"]
[Black "Krasteva, Beloslava"]
[Result "1-0"]
[ECO "A36"]
[WhiteElo "2369"]
[BlackElo "2259"]
[Annotator "ChessBase"]
[PlyCount "115"]
[EventDate "2019.06.16"]
[EventType "swiss"]
[EventCountry "SRB"]
[SourceTitle "playchess.com"]
[Source "ChessBase"]
[SourceQuality "1"]
[TimeControl "40/5400+30:900+30"]

1. c4 {[%emt 0:00:00]} c5 {[%emt 0:00:31]} 2. Nc3 {[%emt 0:00:07]} g6 {[%emt 0:00:21]} 3. g3 {[%emt 0:00:26]} Bg7 {[%emt 0:00:17]} 4. Bg2 {[%emt 0:00:20]} Nc6 {[%emt 0:00:21]} 5. e4 {[%emt 0:01:29]} d6 {[%emt 0:01:41]} 6. Nge2 {[%emt 0:00:17]} e6 {[%emt 0:00:38]} 7. O-O {[%emt 0:00:34]} Nge7 {[%emt 0:00:41]} 8. d3 {[%emt 0:00:27]} O-O {[%emt 0:01:06]} 9. a3 {[%emt 0:01:18]} b6 {[%emt 0:01:59]} 10. Rb1 {[%emt 0:04:26]} Bb7 {[%emt 0:01:13]} 11. b4 {[%emt 0:04:33]} Qd7 {[%emt 0:01:25]} 12. Be3 {[%emt 0:06:02]} Nd4 {[%emt 0:01:50]} 13. Qd2 {[%emt 0:05:02]} Nec6 {[%emt 0:09:19]} 14. b5 {[%emt 0:09:30]} Nxe2+ {[%emt 0:01:45]} 15. Nxe2 {[%emt 0:00:06]} Nd4 {[%emt 0:00:37]} 16. Bxd4 {[%emt 0:07:28]} Bxd4 {[%emt 0:07:19]} 17. Nxd4 {[%emt 0:07:12]} cxd4 {[%emt 0:00:03]} 18. f4 {[%emt 0:00:05]} f6 {[%emt 0:04:06]} 19. Qb2 {[%emt 0:10:52]} e5 {[%emt 0:02:42]} 20. f5 {[%emt 0:00:07]} g5 {[%emt 0:01:23]} 21. Bf3 {[%emt 0:00:06]} a5 {[%emt 0:10:47]} 22. bxa6 {[%emt 0:06:11]} Rxa6 {[%emt 0:00:21]} 23. Qa2 {[%emt 0:00:07]} Kg7 {[%emt 0:01:53]} 24. Rb3 {[%emt 0:03:44]} Bc6 {[%emt 0:01:44]} 25. Rfb1 {[%emt 0:05:59]} Qc7 {[%emt 0:02:20]} 26. Qb2 {[%emt 0:03:05]} Rb8 {[%emt 0:01:12]} 27. Kf2 {[%emt 0:02:45]} Be8 {[%emt 0:04:33]} 28. h4 {[%emt 0:03:00]} h6 {[%emt 0:00:47]} 29. Rh1 {[%emt 0:04:48]} Raa8 {[%emt 0:03:57]} 30. Kg1 {[%emt 0:08:02]} Bf7 {[%emt 0:04:26]} 31. Bd1 {[%emt 0:03:13]} Qc5 {[%emt 0:09:29]} 32. a4 {[%emt 0:01:31]} Qc7 {[%emt 0:06:51]} 33. Rb4 {[%emt 0:00:26]} Qc5 {[%emt 0:02:36]} 34. Kf1 {[%emt 0:00:51]} Qc7 {[%emt 0:00:56]} 35. Rb5 {[%emt 0:00:57]} g4 {[%emt 0:03:55]} 36. h5 {[%emt 0:00:35]} Kh7 {[%emt 0:00:54]} 37. Rb4 {[%emt 0:01:03]} Be8 {[%emt 0:00:25]} 38. Rh4 {[%emt 0:00:21]} Qc6 {[%emt 0:04:14]} 39. Qd2 {[%emt 0:00:23]} Bd7 {[%emt 0:01:58]} 40. Kg1 {[%emt 0:00:00]} Rg8 {[%emt 0:00:00]} 41. Qb2 {[%emt 0:02:37]} Rab8 {[%emt 0:08:32]} 42. Kf2 {[%emt 0:06:48]} Rg5 {[%emt 0:01:30]} 43. Rxg4 {[%emt 0:04:56]} Rxh5 {[%emt 0:01:04]} 44. Rg7+ {[%emt 0:00:03]} Kxg7 {[%emt 0:00:06]} 45. Bxh5 {[%emt 0:00:03]} Qc5 {[%emt 0:05:06]} 46. Qd2 {[%emt 0:01:42]} Ra8 {[%emt 0:01:15]} 47. Bd1 {[%emt 0:02:03]} Kh7 {[%emt 0:01:46]} 48. Rb1 {[%emt 0:00:22]} Rg8 {[%emt 0:01:20]} 49. Qb4 {[%emt 0:01:29]} Rb8 {[%emt 0:01:20]} 50. a5 {[%emt 0:01:09]} b5 {[%emt 0:00:48]} 51. Ba4 {[%emt 0:00:22]} Qc7 {[%emt 0:01:04]} 52. cxb5 {[%emt 0:00:10]} Qc8 {[%emt 0:02:58]} 53. Qd2 {[%emt 0:00:57]} d5 {[%emt 0:00:42]} 54. Rh1 {[%emt 0:00:55]} Qf8 {[%emt 0:00:14]} 55. a6 {[%emt 0:00:12]} dxe4 {[%emt 0:00:18]} 56. dxe4 {[%emt 0:00:04]} d3 {[%emt 0:01:26]} 57. Kf3 {[%emt 0:00:35]} Bxb5 {[%emt 0:00:40]} 58. a7 {[%emt 0:00:11]} 1-0

[Event "Silver Lake Open-A 2019"]
[Site "Veliko Gradiste"]
[Date "2019.06.23"]
[Round "9.6"]
[White "Konaplev, Anton"]
[Black "Pikula, Dejan"]
[Result "1/2-1/2"]
[ECO "A67"]
[WhiteElo "2292"]
[BlackElo "2468"]
[Annotator "RC"]
[PlyCount "132"]
[EventDate "2019.06.16"]
[EventType "swiss"]
[EventCountry "SRB"]
[SourceTitle "playchess.com"]
[Source "ChessBase"]
[SourceQuality "1"]
[TimeControl "40/5400+30:900+30"]

1. d4 {[%emt 0:00:00]} Nf6 {[%emt 0:00:00]} 2. c4 {[%emt 0:00:06]} c5 {[%emt 0:00:08]} 3. d5 {[%emt 0:00:32]} e6 {[%emt 0:00:05]} 4. Nc3 {[%emt 0:00:22]} exd5 {[%emt 0:00:06]} 5. cxd5 {[%emt 0:00:28]} d6 {[%emt 0:00:57]} 6. e4 {[%emt 0:00:35]} g6 {[%emt 0:00:00]} 7. f4 {[%emt 0:00:48]} Bg7 {[%emt 0:00:10]} 8. Bb5+ {[%emt 0:00:42]} Nfd7 {[%emt 0:00:20]} 9. Be2 {[%emt 0:00:44]} O-O {[%emt 0:03:55]} 10. Nf3 {[%emt 0:00:19]} Re8 {[%emt 0:00:23]} 11. O-O {[%emt 0:01:08]} Na6 {[%emt 0:00:39]} 12. Nd2 {[%emt 0:02:09]} Nc7 {[%emt 0:04:47]} 13. a4 {[%emt 0:02:30]} Nf6 {[%emt 0:09:32]} 14. Bf3 {[%emt 0:03:50]} b6 {[%emt 0:07:05]} 15. e5 {[%emt 0:11:09]} dxe5 {[%emt 0:00:30]} 16. d6 {[%emt 0:01:33]} Qxd6 {[%emt 0:00:27]} 17. Bxa8 {[%emt 0:01:57]} Nxa8 {[%emt 0:01:58]} 18. Nb5 {[%emt 0:04:40]} Qe7 {[%emt 0:06:40]} 19. fxe5 {[%emt 0:04:58]} Ng4 {[%emt 0:03:34]} 20. Nf3 {[%emt 0:04:57]} Nxe5 {[%emt 0:01:39]} 21. Bg5 {[%emt 0:09:11]} Qe6 {[%emt 0:06:20]} 22. Nxe5 {[%emt 0:14:40]} Bxe5 {[%emt 0:00:22]} 23. Qf3 {[%emt 0:03:05]} Qf5 {[%emt 0:06:59]} 24. Qxf5 {[%emt 0:17:22]} Bxf5 {[%emt 0:00:14]} 25. Rae1 {[%emt 0:04:28]} Bd7 {[%emt 0:01:06]} 26. Nxa7 {[%emt 0:06:23]} Bxa4 {[%emt 0:31:12]} 27. Bf6 {[%emt 0:00:06]} Bxf6 {[%emt 0:05:41]} 28. Rxe8+ {[%emt 0:00:02]} Bxe8 {[%emt 0:00:01]} 29. Rxf6 {[%emt 0:00:02]} Kf8 {[%emt 0:00:18]} 30. Rd6 {[%emt 0:02:56]} b5 {[%emt 0:01:27]} 31. Rd5 {[%emt 0:00:56]} c4 {[%emt 0:01:17]} 32. Nxb5 {[%emt 0:00:45]} Nb6 {[%emt 0:00:07]} 33. Rc5 {[%emt 0:01:11]} Na4 {[%emt 0:00:26]} 34. Rc8 {[%emt 0:00:25]} Ke7 {[%emt 0:00:15]} 35. Na3 {[%emt 0:01:22]} Nxb2 {[%emt 0:00:23]} 36. Nxc4 {[%emt 0:00:33]} Bd7 {[%emt 0:01:20]} 37. Rc5 {[%emt 0:00:23]} Nxc4 {[%emt 0:00:06]} 38. Rxc4 {[%emt 0:00:04]} Kf6 {[%emt 0:00:05]} 39. Kf2 {[%emt 0:00:23]} Be6 {[%emt 0:00:14]} 40. Rb4 {[%emt 0:00:00]} h6 {[%emt 0:00:00]} 41. Ke3 {[%emt 0:05:22]} Bd5 {[%emt 0:02:28]} 42. Rb2 {[%emt 0:01:27]} Be6 {[%emt 0:01:07]} 43. Kd4 {[%emt 0:00:27]} Kg7 {[%emt 0:00:12]} 44. Ke5 {[%emt 0:00:23]} Bc4 {[%emt 0:00:04]} 45. Rf2 {[%emt 0:02:18]} Be6 {[%emt 0:00:18]} 46. Rf6 {[%emt 0:03:50]} Bb3 {[%emt 0:00:22]} 47. Rc6 {[%emt 0:00:41]} Ba2 {[%emt 0:00:12]} 48. g4 {[%emt 0:02:12]} Bb3 {[%emt 0:00:07]} 49. h4 {[%emt 0:00:53]} Ba2 {[%emt 0:00:08]} 50. g5 {[%emt 0:02:02]} hxg5 {[%emt 0:00:47]} 51. hxg5 {[%emt 0:00:06]} Bb3 {[%emt 0:00:03]} 52. Rf6 {[%emt 0:01:06]} Bc4 {[%emt 0:00:07]} 53. Kd4 {[%emt 0:00:15]} Bb3 {[%emt 0:00:09]} 54. Kc5 {[%emt 0:00:15]} Ba2 {[%emt 0:00:08]} 55. Rb6 {[%emt 0:00:39]} Be6 {[%emt 0:00:23]} 56. Kd4 {[%emt 0:01:28]} Ba2 {[%emt 0:00:25]} 57. Ra6 {[%emt 0:00:54]} Bb3 {[%emt 0:00:45]} 58. Ra3 {[%emt 0:00:39]} Be6 {[%emt 0:00:06]} 59. Kc5 {[%emt 0:00:24]} Bf5 {[%emt 0:00:59]} 60. Re3 {[%emt 0:00:47]} Be6 {[%emt 0:00:22]} 61. Kd6 {[%emt 0:00:35]} Bc4 {[%emt 0:00:19]} 62. Ke7 {[%emt 0:00:16]} Bd5 {[%emt 0:00:07]} 63. Rc3 {[%emt 0:00:48]} Be6 {[%emt 0:00:06]} 64. Rc6 {[%emt 0:00:11]} Bd5 {[%emt 0:00:08]} 65. Rf6 {[%emt 0:00:16]} Bb3 {[%emt 0:00:06]} 66. Rf4 {[%emt 0:00:15]} Bd5 {[%emt 0:00:05]} 1/2-1/2

[Event "Silver Lake Open-A 2019"]
[Site "Veliko Gradiste"]
[Date "2019.06.23"]
[Round "9.10"]
[White "Martic, Ivan"]
[Black "Popovic, Milan S"]
[Result "1/2-1/2"]
[ECO "B15"]
[WhiteElo "2401"]
[BlackElo "2324"]
[Annotator "NA RC"]
[PlyCount "20"]
[EventDate "2019.06.16"]
[EventType "swiss"]
[EventCountry "SRB"]
[SourceTitle "playchess.com"]
[Source "ChessBase"]
[SourceQuality "1"]
[TimeControl "40/5400+30:900+30"]

1. d4 {[%emt 0:00:00]} c6 {[%emt 0:02:19]} 2. e4 {[%emt 0:04:29]} d5 {[%emt 0:00:05]} 3. Nd2 {[%emt 0:00:29]} dxe4 {[%emt 0:00:05]} 4. Nxe4 {[%emt 0:00:05]} Nf6 {[%emt 0:00:04]} 5. Nxf6+ {[%emt 0:00:07]} exf6 {[%emt 0:00:04]} 6. c3 {[%emt 0:02:36]} Bd6 {[%emt 0:00:05]} 7. Bd3 {[%emt 0:00:28]} O-O {[%emt 0:00:06]} 8. Qc2 {[%emt 0:00:05]} Re8+ {[%emt 0:00:04]} 9. Ne2 {[%emt 0:00:11]} h5 {[%emt 0:00:05]} 10. Be3 {[%emt 0:01:49]} Nd7 {[%emt 0:00:24]} 1/2-1/2